[Event "*** Titled Tuesday Blitz"]
[Site "Chess.com"]
[Date "2018.05.01"]
[Round "2"]
[White "Synctel"]
[Black "MikeSailer"]
[Result "1/2-1/2"]
[WhiteElo "1918"]
[BlackElo "1931"]
[TimeControl "180+2"]
[EndTime "13:21:07 PDT"]
[Termination "Game drawn by repetition"]

1. e4 {[%clk 0:03:01.9]} 1... d5 {[%clk 0:03:00]} 2. Nc3 {[%clk 0:03:02.1]} 2...
dxe4 {[%clk 0:02:54.8]} 3. Nxe4 {[%clk 0:03:04]} 3... Nf6 {[%clk 0:02:55.1]} 4.
Nxf6+ {[%clk 0:03:02.6]} 4... exf6 {[%clk 0:02:56]} 5. d4 {[%clk 0:03:02.9]}
5... Bd6 {[%clk 0:02:56.3]} 6. Nf3 {[%clk 0:02:56.9]} 6... O-O {[%clk
0:02:56.7]} 7. Be2 {[%clk 0:02:58.4]} 7... Re8 {[%clk 0:02:57]} 8. O-O {[%clk
0:02:59.2]} 8... Bg4 {[%clk 0:02:57.5]} 9. c3 {[%clk 0:02:55.3]} 9... c6 {[%clk
0:02:54.6]} 10. Be3 {[%clk 0:02:38.8]} 10... Nd7 {[%clk 0:02:54.4]} 11. Re1
{[%clk 0:02:35.5]} 11... Nf8 {[%clk 0:02:54.4]} 12. Qb3 {[%clk 0:02:33.8]} 12...
Qc7 {[%clk 0:02:52.7]} 13. h3 {[%clk 0:02:34]} 13... Bh5 {[%clk 0:02:52.9]} 14.
Nd2 {[%clk 0:02:26.9]} 14... Bxe2 {[%clk 0:02:51.5]} 15. Rxe2 {[%clk 0:02:28.8]}
15... Ng6 {[%clk 0:02:46.8]} 16. Rae1 {[%clk 0:02:22.6]} 16... Re6 {[%clk
0:02:34.4]} 17. Nc4 {[%clk 0:02:17.2]} 17... Bh2+ {[%clk 0:02:33.1]} 18. Kh1
{[%clk 0:02:17.1]} 18... Rae8 {[%clk 0:02:29.3]} 19. Qd1 {[%clk 0:02:07.7]}
19... b5 {[%clk 0:02:25.2]} 20. Nd2 {[%clk 0:02:05.5]} 20... Bf4 {[%clk
0:02:05.5]} 21. Bxf4 {[%clk 0:01:53.4]} 21... Qxf4 {[%clk 0:01:58.8]} 22. Rxe6
{[%clk 0:01:49.3]} 22... Rxe6 {[%clk 0:01:58.8]} 23. Rxe6 {[%clk 0:01:49.2]}
23... fxe6 {[%clk 0:01:59.7]} 24. Qe2 {[%clk 0:01:46.4]} 24... e5 {[%clk
0:01:56.7]} 25. dxe5 {[%clk 0:01:44.1]} 25... Nxe5 {[%clk 0:01:54.7]} 26. a3
{[%clk 0:01:27.1]} 26... h6 {[%clk 0:01:54.3]} 27. Ne4 {[%clk 0:01:24.7]} 27...
Qc1+ {[%clk 0:01:23.8]} 28. Kh2 {[%clk 0:01:25.2]} 28... Nc4 {[%clk 0:01:17.2]}
29. Qg4 {[%clk 0:01:12.3]} 29... Qxb2 {[%clk 0:00:59.4]} 30. Qe6+ {[%clk
0:01:07.8]} 30... Kh7 {[%clk 0:00:56.7]} 31. Qf5+ {[%clk 0:01:06.8]} 31... Kg8
{[%clk 0:00:54.9]} 32. Qe6+ {[%clk 0:01:01.9]} 32... Kh7 {[%clk 0:00:49.4]} 33.
Qf5+ {[%clk 0:01:00.7]} 33... Kg8 {[%clk 0:00:49.7]} 34. Qe6+ {[%clk 0:01:01.4]}
34... Kf8 {[%clk 0:00:39]} 35. Qc8+ {[%clk 0:00:36.5]} 35... Kf7 {[%clk
0:00:36.5]} 36. Qd7+ {[%clk 0:00:35.9]} 36... Kg6 {[%clk 0:00:34.3]} 37. Qe8+
{[%clk 0:00:20.5]} 37... Kh7 {[%clk 0:00:34.1]} 38. Nxf6+ {[%clk 0:00:20.3]}
38... gxf6 {[%clk 0:00:31.9]} 39. Qf7+ {[%clk 0:00:21.4]} 39... Kh8 {[%clk
0:00:33.1]} 40. Qf8+ {[%clk 0:00:22.8]} 40... Kh7 {[%clk 0:00:34.4]} 41. Qf7+
{[%clk 0:00:24.4]} 41... Kh8 {[%clk 0:00:35.2]} 42. Qf8+ {[%clk 0:00:25.9]}
42... Kh7 {[%clk 0:00:36.1]} 43. Qf7+ {[%clk 0:00:27.8]} 43... Kh8 {[%clk
0:00:37.1]} 44. Qf8+ {[%clk 0:00:29.2]} 44... Kh7 {[%clk 0:00:38.1]} 45. Qf7+
{[%clk 0:00:30.7]} 1/2-1/2

[Event "*** Titled Tuesday Blitz"]
[Site "Chess.com"]
[Date "2018.05.01"]
[Round "2"]
[White "ABDELAZEEZ-M"]
[Black "Flawless2018"]
[Result "1/2-1/2"]
[WhiteElo "2270"]
[BlackElo "2463"]
[TimeControl "180+2"]
[EndTime "13:21:11 PDT"]
[Termination "Game drawn by stalemate"]

1. d4 {[%clk 0:03:01.6]} 1... Nf6 {[%clk 0:03:00.8]} 2. c4 {[%clk 0:03:02.6]}
2... e6 {[%clk 0:03:02]} 3. Nf3 {[%clk 0:03:03.6]} 3... b6 {[%clk 0:03:02.8]} 4.
Bg5 {[%clk 0:03:03]} 4... Be7 {[%clk 0:03:00.3]} 5. g3 {[%clk 0:03:03.2]} 5...
Bb7 {[%clk 0:02:49.3]} 6. Bg2 {[%clk 0:03:03.8]} 6... O-O {[%clk 0:02:50.8]} 7.
Qc2 {[%clk 0:03:03.6]} 7... d5 {[%clk 0:02:38.3]} 8. O-O {[%clk 0:03:02.8]} 8...
Nbd7 {[%clk 0:02:25.4]} 9. Nc3 {[%clk 0:03:02.4]} 9... h6 {[%clk 0:02:12.9]} 10.
Bxf6 {[%clk 0:03:02.4]} 10... Nxf6 {[%clk 0:02:11.8]} 11. Ne5 {[%clk 0:03:00.4]}
11... Rb8 {[%clk 0:02:04.5]} 12. Rfd1 {[%clk 0:02:59.4]} 12... c6 {[%clk
0:01:44.7]} 13. Rac1 {[%clk 0:02:59.3]} 13... Nd7 {[%clk 0:01:14]} 14. e4 {[%clk
0:02:57.7]} 14... Nxe5 {[%clk 0:00:59.3]} 15. dxe5 {[%clk 0:02:58]} 15... d4
{[%clk 0:00:56.7]} 16. Ne2 {[%clk 0:02:54.8]} 16... c5 {[%clk 0:00:57.3]} 17. f4
{[%clk 0:02:55.3]} 17... g5 {[%clk 0:00:52]} 18. f5 {[%clk 0:02:53.9]} 18... f6
{[%clk 0:00:48.9]} 19. exf6 {[%clk 0:02:53.1]} 19... Bxf6 {[%clk 0:00:47.3]} 20.
fxe6 {[%clk 0:02:50.1]} 20... Qe7 {[%clk 0:00:45.8]} 21. e5 {[%clk 0:02:38.1]}
21... Bxe5 {[%clk 0:00:41.4]} 22. Bxb7 {[%clk 0:02:37.4]} 22... Rxb7 {[%clk
0:00:43.3]} 23. Qe4 {[%clk 0:02:32.7]} 23... Bg7 {[%clk 0:00:41.3]} 24. Rf1
{[%clk 0:02:32.1]} 24... Rbb8 {[%clk 0:00:39]} 25. g4 {[%clk 0:02:27.7]} 25...
Rxf1+ {[%clk 0:00:32.9]} 26. Rxf1 {[%clk 0:02:28]} 26... Rf8 {[%clk 0:00:32.4]}
27. Ng3 {[%clk 0:02:26.1]} 27... Rxf1+ {[%clk 0:00:23.7]} 28. Kxf1 {[%clk
0:02:26.8]} 28... Bf8 {[%clk 0:00:22]} 29. Nf5 {[%clk 0:02:23]} 29... Qf6 {[%clk
0:00:20]} 30. e7 {[%clk 0:02:22.7]} 30... Bxe7 {[%clk 0:00:19]} 31. Qxe7 {[%clk
0:02:23.4]} 31... Qxe7 {[%clk 0:00:18]} 32. Nxe7+ {[%clk 0:02:24.4]} 32... Kf7
{[%clk 0:00:19.4]} 33. Nc8 {[%clk 0:02:25.3]} 33... Ke6 {[%clk 0:00:19.5]} 34.
Ke2 {[%clk 0:02:20.6]} 34... Ke5 {[%clk 0:00:20.7]} 35. Kd3 {[%clk 0:02:20.8]}
35... Kf4 {[%clk 0:00:21.7]} 36. Nxa7 {[%clk 0:02:22.1]} 36... Kxg4 {[%clk
0:00:22.9]} 37. Nc8 {[%clk 0:02:23.4]} 37... Kh3 {[%clk 0:00:24]} 38. Nxb6
{[%clk 0:02:24.7]} 38... Kxh2 {[%clk 0:00:25.5]} 39. a4 {[%clk 0:02:25.9]} 39...
g4 {[%clk 0:00:26.9]} 40. Nd5 {[%clk 0:02:23]} 40... g3 {[%clk 0:00:28.2]} 41.
Nf4 {[%clk 0:02:23]} 41... h5 {[%clk 0:00:29.5]} 42. a5 {[%clk 0:02:24.2]} 42...
h4 {[%clk 0:00:30.8]} 43. a6 {[%clk 0:02:25.4]} 43... h3 {[%clk 0:00:32.2]} 44.
a7 {[%clk 0:02:26.2]} 44... g2 {[%clk 0:00:34.1]} 45. a8=Q {[%clk 0:02:14.9]}
45... g1=Q {[%clk 0:00:33.4]} 46. Qf3 {[%clk 0:02:12.5]} 46... Qg3 {[%clk
0:00:28.2]} 47. Qxg3+ {[%clk 0:02:12.5]} 47... Kxg3 {[%clk 0:00:30.1]} 48. Nxh3
{[%clk 0:02:12.6]} 48... Kxh3 {[%clk 0:00:31.1]} 49. b4 {[%clk 0:02:14]} 49...
cxb4 {[%clk 0:00:29.2]} 50. Kxd4 {[%clk 0:02:15.1]} 50... Kg4 {[%clk 0:00:19.7]}
51. c5 {[%clk 0:02:13.1]} 51... Kf5 {[%clk 0:00:19.7]} 52. Kc4 {[%clk 0:02:14]}
52... Ke6 {[%clk 0:00:20.5]} 53. Kxb4 {[%clk 0:02:14.9]} 53... Kd7 {[%clk
0:00:21.8]} 54. Kb5 {[%clk 0:02:14.9]} 54... Kc7 {[%clk 0:00:23.1]} 55. c6
{[%clk 0:02:13.6]} 55... Kc8 {[%clk 0:00:18.9]} 56. Kb6 {[%clk 0:02:04.1]} 56...
Kb8 {[%clk 0:00:20]} 57. c7+ {[%clk 0:01:51.2]} 57... Kc8 {[%clk 0:00:20.5]} 58.
Kc6 {[%clk 0:01:52]} 1/2-1/2

[Event "*** Titled Tuesday Blitz"]
[Site "Chess.com"]
[Date "2018.05.01"]
[Round "2"]
[White "arna"]
[Black "BlackBoarder"]
[Result "1/2-1/2"]
[WhiteElo "2116"]
[BlackElo "2225"]
[TimeControl "180+2"]
[EndTime "13:21:16 PDT"]
[Termination "Game drawn by agreement"]

1. e4 {[%clk 0:03:01.9]} 1... e6 {[%clk 0:03:00.7]} 2. d4 {[%clk 0:03:01.6]}
2... d5 {[%clk 0:03:01.8]} 3. exd5 {[%clk 0:03:03]} 3... exd5 {[%clk 0:03:02.8]}
4. Bd3 {[%clk 0:03:04.9]} 4... c5 {[%clk 0:03:02.6]} 5. Qf3 {[%clk 0:02:59.8]}
5... c4 {[%clk 0:02:56.2]} 6. Be2 {[%clk 0:02:48.8]} 6... Nf6 {[%clk 0:02:55.7]}
7. Bg5 {[%clk 0:02:31.3]} 7... Be7 {[%clk 0:02:20.6]} 8. Nc3 {[%clk 0:02:14.9]}
8... O-O {[%clk 0:02:04.9]} 9. O-O-O {[%clk 0:01:56.5]} 9... Be6 {[%clk
0:01:44.5]} 10. h3 {[%clk 0:01:51.9]} 10... Nc6 {[%clk 0:01:41.3]} 11. Qg3
{[%clk 0:01:52]} 11... Kh8 {[%clk 0:00:50.2]} 12. Bxf6 {[%clk 0:01:45.9]} 12...
Bxf6 {[%clk 0:00:52.1]} 13. Nf3 {[%clk 0:01:46.2]} 13... b5 {[%clk 0:00:41.2]}
14. Ne5 {[%clk 0:01:27.9]} 14... Qb6 {[%clk 0:00:29.7]} 15. Nxc6 {[%clk
0:01:19.6]} 15... Qxc6 {[%clk 0:00:31.6]} 16. Bf3 {[%clk 0:01:20.9]} 16... b4
{[%clk 0:00:31.8]} 17. Ne2 {[%clk 0:01:20.4]} 17... b3 {[%clk 0:00:29.3]} 18.
axb3 {[%clk 0:00:58.6]} 18... cxb3 {[%clk 0:00:31.2]} 19. Nc3 {[%clk 0:00:59.9]}
19... bxc2 {[%clk 0:00:31.2]} 20. Rd2 {[%clk 0:00:54.7]} 20... Rfc8 {[%clk
0:00:23.1]} 21. Qf4 {[%clk 0:00:51.8]} 21... h6 {[%clk 0:00:20.6]} 22. h4 {[%clk
0:00:51.7]} 22... Rab8 {[%clk 0:00:21.4]} 23. Rxc2 {[%clk 0:00:44.9]} 23... Qb6
{[%clk 0:00:22.3]} 24. Rd1 {[%clk 0:00:40.2]} 24... Qb3 {[%clk 0:00:23.3]} 25.
Rdd2 {[%clk 0:00:28.2]} 25... Rb4 {[%clk 0:00:23.8]} 26. g3 {[%clk 0:00:28]}
26... Rbc4 {[%clk 0:00:23.6]} 27. Bg4 {[%clk 0:00:19.2]} 27... Bxg4 {[%clk
0:00:22.6]} 28. Qxg4 {[%clk 0:00:21.1]} 28... Qb4 {[%clk 0:00:13.2]} 29. Qf5
{[%clk 0:00:22]} 29... Rd8 {[%clk 0:00:09.8]} 30. Nxd5 {[%clk 0:00:12.7]} 30...
Rxc2+ {[%clk 0:00:10.9]} 31. Kxc2 {[%clk 0:00:11.1]} 31... Qc4+ {[%clk
0:00:10.6]} 32. Nc3 {[%clk 0:00:10.2]} 32... Rxd4 {[%clk 0:00:11.5]} 33. Rxd4
{[%clk 0:00:09.8]} 33... Bxd4 {[%clk 0:00:12]} 34. f3 {[%clk 0:00:07.5]} 34...
Bxc3 {[%clk 0:00:12.4]} 35. bxc3 {[%clk 0:00:09.4]} 35... g6 {[%clk 0:00:09.3]}
1/2-1/2

[Event "*** Titled Tuesday Blitz"]
[Site "Chess.com"]
[Date "2018.05.01"]
[Round "2"]
[White "juniortay"]
[Black "Cryptochess"]
[Result "0-1"]
[WhiteElo "2351"]
[BlackElo "2413"]
[TimeControl "180+2"]
[EndTime "13:21:18 PDT"]
[Termination "Cryptochess won on time"]

1. e4 {[%clk 0:03:01.9]} 1... d6 {[%clk 0:02:43.2]} 2. Nc3 {[%clk 0:02:59.7]}
2... Nf6 {[%clk 0:02:44.6]} 3. f4 {[%clk 0:03:00.1]} 3... g6 {[%clk 0:02:45.8]}
4. Nf3 {[%clk 0:03:01]} 4... Bg7 {[%clk 0:02:47]} 5. Bc4 {[%clk 0:03:01.9]} 5...
O-O {[%clk 0:02:48.3]} 6. d3 {[%clk 0:03:02.6]} 6... c6 {[%clk 0:02:49]} 7. Bb3
{[%clk 0:03:03.7]} 7... b5 {[%clk 0:02:50.5]} 8. O-O {[%clk 0:03:03.7]} 8...
Qb6+ {[%clk 0:02:51.8]} 9. Kh1 {[%clk 0:03:04.1]} 9... a5 {[%clk 0:02:53.2]} 10.
a4 {[%clk 0:03:04.4]} 10... Na6 {[%clk 0:02:47.9]} 11. Qe1 {[%clk 0:03:01.7]}
11... Nc5 {[%clk 0:02:47.2]} 12. Ba2 {[%clk 0:03:02.4]} 12... b4 {[%clk
0:02:43.3]} 13. Ne2 {[%clk 0:03:03.3]} 13... Nxa4 {[%clk 0:02:42.7]} 14. Qh4
{[%clk 0:03:02]} 14... Nc5 {[%clk 0:02:36.7]} 15. f5 {[%clk 0:03:00.9]} 15... b3
{[%clk 0:02:29.7]} 16. Bb1 {[%clk 0:02:49.6]} 16... bxc2 {[%clk 0:02:24.1]} 17.
Bxc2 {[%clk 0:02:51.5]} 17... Nb3 {[%clk 0:02:25.3]} 18. Ra2 {[%clk 0:02:32.6]}
18... Nxc1 {[%clk 0:02:23.6]} 19. Rxc1 {[%clk 0:02:22.3]} 19... gxf5 {[%clk
0:02:22.4]} 20. Nf4 {[%clk 0:02:06.1]} 20... fxe4 {[%clk 0:02:10.5]} 21. dxe4
{[%clk 0:01:56.3]} 21... Bg4 {[%clk 0:02:10.1]} 22. e5 {[%clk 0:01:41]} 22...
dxe5 {[%clk 0:02:08.2]} 23. Nxe5 {[%clk 0:01:41.9]} 23... Qe3 {[%clk 0:02:04.8]}
24. Ned3 {[%clk 0:01:12.1]} 24... Bf5 {[%clk 0:01:58]} 25. Re1 {[%clk
0:01:02.5]} 25... Qd4 {[%clk 0:01:28.4]} 26. Ra4 {[%clk 0:00:52.1]} 26... Qd6
{[%clk 0:01:28.3]} 27. Ra3 {[%clk 0:00:19.4]} 27... Rad8 {[%clk 0:01:18.9]} 28.
h3 {[%clk 0:00:19.1]} 28... Nd5 {[%clk 0:01:13.5]} 29. Nh5 {[%clk 0:00:18.1]}
29... Qh6 {[%clk 0:01:03.9]} 30. Re5 {[%clk 0:00:11.7]} 30... Bxe5 {[%clk
0:00:58.8]} 31. Nxe5 {[%clk 0:00:13.6]} 31... Bxc2 {[%clk 0:00:41.2]} 32. Rg3+
{[%clk 0:00:13]} 32... Kh8 {[%clk 0:00:31.9]} 33. Qg4 {[%clk 0:00:12.3]} 33...
Bg6 {[%clk 0:00:27.3]} 34. Qd4 {[%clk 0:00:07]} 34... Nf6 {[%clk 0:00:26]} 35.
Qc3 {[%clk 0:00:05.8]} 35... Bxh5 {[%clk 0:00:23.5]} 36. Nxc6 {[%clk 0:00:05.5]}
36... Rd1+ {[%clk 0:00:23.3]} 37. Kh2 {[%clk 0:00:06.2]} 37... Qc1 {[%clk
0:00:23.8]} 0-1

[Event "*** Titled Tuesday Blitz"]
[Site "Chess.com"]
[Date "2018.05.01"]
[Round "2"]
[White "TST2014"]
[Black "MartinMatthiesen"]
[Result "1/2-1/2"]
[WhiteElo "2399"]
[BlackElo "2365"]
[TimeControl "180+2"]
[EndTime "13:21:22 PDT"]
[Termination "Game drawn by agreement"]

1. d4 {[%clk 0:02:59.8]} 1... Nf6 {[%clk 0:02:58.4]} 2. c4 {[%clk 0:03:00.2]}
2... e6 {[%clk 0:02:59.1]} 3. Nf3 {[%clk 0:03:00.8]} 3... d5 {[%clk 0:02:59]} 4.
Nc3 {[%clk 0:03:00.9]} 4... c6 {[%clk 0:02:59.7]} 5. e3 {[%clk 0:02:59.5]} 5...
Nbd7 {[%clk 0:02:59.8]} 6. Qc2 {[%clk 0:02:58.5]} 6... Bd6 {[%clk 0:02:59.6]} 7.
Be2 {[%clk 0:02:57.9]} 7... O-O {[%clk 0:02:59.1]} 8. O-O {[%clk 0:02:58]} 8...
b6 {[%clk 0:02:59.2]} 9. b3 {[%clk 0:02:54.3]} 9... Bb7 {[%clk 0:02:58.9]} 10.
Bb2 {[%clk 0:02:50.3]} 10... Qe7 {[%clk 0:02:57.5]} 11. e4 {[%clk 0:02:44.1]}
11... dxe4 {[%clk 0:02:57.5]} 12. Nxe4 {[%clk 0:02:45.5]} 12... Nxe4 {[%clk
0:02:57.9]} 13. Qxe4 {[%clk 0:02:44.9]} 13... Nf6 {[%clk 0:02:58.5]} 14. Qh4
{[%clk 0:02:44.1]} 14... c5 {[%clk 0:02:58.6]} 15. Rad1 {[%clk 0:02:40.6]} 15...
Rad8 {[%clk 0:02:54]} 16. Rfe1 {[%clk 0:02:37]} 16... Ne4 {[%clk 0:02:45.7]} 17.
Qxe7 {[%clk 0:02:33.2]} 17... Bxe7 {[%clk 0:02:46.2]} 18. Bd3 {[%clk 0:02:31.7]}
18... f5 {[%clk 0:02:29.9]} 19. Bc2 {[%clk 0:02:21.7]} 19... cxd4 {[%clk
0:02:20.8]} 20. Nxd4 {[%clk 0:02:21.4]} 20... Bc5 {[%clk 0:01:58]} 21. f3 {[%clk
0:02:15.4]} 21... e5 {[%clk 0:01:45.4]} 22. fxe4 {[%clk 0:01:56.5]} 22... exd4
{[%clk 0:01:45.9]} 23. Kh1 {[%clk 0:01:54.9]} 23... fxe4 {[%clk 0:01:37]} 24.
Bxe4 {[%clk 0:01:54.9]} 24... Rf2 {[%clk 0:01:28.7]} 25. Bxd4 {[%clk 0:01:39.8]}
25... Rxd4 {[%clk 0:00:36.8]} 26. Rxd4 {[%clk 0:01:29.2]} 26... Bxd4 {[%clk
0:00:35]} 27. Bxb7 {[%clk 0:01:30.6]} 27... Rxa2 {[%clk 0:00:35.8]} 28. Bd5+
{[%clk 0:01:32.1]} 28... Kf8 {[%clk 0:00:36.3]} 29. b4 {[%clk 0:01:27.9]} 29...
Ra1 {[%clk 0:00:36.1]} 30. Rxa1 {[%clk 0:01:28]} 30... Bxa1 {[%clk 0:00:38]} 31.
b5 {[%clk 0:01:28.4]} 31... Bd4 {[%clk 0:00:37.8]} 32. g4 {[%clk 0:01:28.6]}
32... g5 {[%clk 0:00:37.9]} 33. Kg2 {[%clk 0:01:30.1]} 33... Ke7 {[%clk
0:00:39]} 34. Kf3 {[%clk 0:01:31.6]} 34... Kd6 {[%clk 0:00:40.2]} 35. Ke4 {[%clk
0:01:32.9]} 35... Be5 {[%clk 0:00:41.4]} 36. h3 {[%clk 0:01:33.2]} 36... Bg3
{[%clk 0:00:42.5]} 37. Kf5 {[%clk 0:01:34.4]} 37... Bh4 {[%clk 0:00:43.8]} 38.
Bg8 {[%clk 0:01:33.4]} 38... h6 {[%clk 0:00:44.2]} 39. Kg6 {[%clk 0:01:34.9]}
39... Kc5 {[%clk 0:00:45.9]} 40. Kxh6 {[%clk 0:01:36]} 40... Kd4 {[%clk
0:00:46.3]} 41. Kg6 {[%clk 0:01:37]} 41... Kc5 {[%clk 0:00:48.2]} 42. Kf5 {[%clk
0:01:38.4]} 42... Kd6 {[%clk 0:00:48.9]} 43. Kf6 {[%clk 0:01:38.5]} 43... Kc5
{[%clk 0:00:50.1]} 44. Kf7 {[%clk 0:01:39.9]} 44... Bg3 {[%clk 0:00:51.1]} 45.
Ke7 {[%clk 0:01:40.2]} 45... Bh4 {[%clk 0:00:52.6]} 46. Kd7 {[%clk 0:01:41.3]}
46... Bg3 {[%clk 0:00:54.1]} 47. Kc8 {[%clk 0:01:42.3]} 47... Bh4 {[%clk
0:00:55.4]} 48. Kb7 {[%clk 0:01:43.8]} 48... Bg3 {[%clk 0:00:56]} 49. Kxa7
{[%clk 0:01:45.1]} 49... Bh4 {[%clk 0:00:57.5]} 50. Kb7 {[%clk 0:01:46.6]} 50...
Bg3 {[%clk 0:00:59.1]} 51. Kc8 {[%clk 0:01:48.2]} 51... Bh4 {[%clk 0:01:00.7]}
52. Kd7 {[%clk 0:01:49.8]} 52... Bg3 {[%clk 0:01:02.4]} 53. Ke6 {[%clk
0:01:51.3]} 53... Bh4 {[%clk 0:01:04.1]} 54. Kf5 {[%clk 0:01:52.9]} 54... Kd6
{[%clk 0:01:05.3]} 55. Ke4 {[%clk 0:01:54]} 55... Kc5 {[%clk 0:01:06.6]} 56. Ke5
{[%clk 0:01:53.8]} 56... Bg3+ {[%clk 0:01:06.9]} 57. Kf5 {[%clk 0:01:54.9]}
57... Bh4 {[%clk 0:01:08.2]} 58. Bd5 {[%clk 0:01:52.6]} 58... Kd6 {[%clk
0:01:08.6]} 59. Ke4 {[%clk 0:01:51.2]} 59... Kc5 {[%clk 0:01:10.5]} 60. Kd3
{[%clk 0:01:52.2]} 60... Bg3 {[%clk 0:01:11.1]} 61. Bg2 {[%clk 0:01:51.8]} 61...
Bh4 {[%clk 0:01:12.1]} 62. Bf1 {[%clk 0:01:51]} 62... Bg3 {[%clk 0:01:13.1]} 63.
Ke4 {[%clk 0:01:52.3]} 63... Bh4 {[%clk 0:01:14.3]} 64. Kf5 {[%clk 0:01:53.4]}
64... Kd6 {[%clk 0:01:15]} 65. Kf6 {[%clk 0:01:53.4]} 65... Kc5 {[%clk
0:01:16.2]} 66. Kg6 {[%clk 0:01:50.9]} 66... Kd6 {[%clk 0:01:16.9]} 67. Bg2
{[%clk 0:01:50.4]} 67... Kc5 {[%clk 0:01:17.9]} 68. Bd5 {[%clk 0:01:52]} 68...
Kd6 {[%clk 0:01:19]} 69. Kf5 {[%clk 0:01:51]} 69... Kc5 {[%clk 0:01:20]} 70. Bf7
{[%clk 0:01:47.5]} 70... Kd6 {[%clk 0:01:20.4]} 71. Ke4 {[%clk 0:01:47]} 71...
Kc5 {[%clk 0:01:21.5]} 72. Kd3 {[%clk 0:01:46.3]} 72... Bg3 {[%clk 0:01:21.8]}
1/2-1/2

[Event "*** Titled Tuesday Blitz"]
[Site "Chess.com"]
[Date "2018.05.01"]
[Round "2"]
[White "toad"]
[Black "Vamostodorecto"]
[Result "0-1"]
[WhiteElo "2210"]
[BlackElo "2383"]
[TimeControl "180+2"]
[EndTime "13:21:23 PDT"]
[Termination "Vamostodorecto won by checkmate"]

1. d4 {[%clk 0:03:01.9]} 1... Nf6 {[%clk 0:02:58.6]} 2. c4 {[%clk 0:03:03.2]}
2... g6 {[%clk 0:02:59.9]} 3. g3 {[%clk 0:03:04.4]} 3... d5 {[%clk 0:02:57.8]}
4. Bg2 {[%clk 0:03:05.2]} 4... Bg7 {[%clk 0:02:57.3]} 5. Nf3 {[%clk 0:03:06.2]}
5... O-O {[%clk 0:02:56.6]} 6. O-O {[%clk 0:03:07]} 6... Nc6 {[%clk 0:02:58.2]}
7. cxd5 {[%clk 0:03:07]} 7... Nxd5 {[%clk 0:03:00.1]} 8. e4 {[%clk 0:03:08.3]}
8... Nb6 {[%clk 0:02:56.9]} 9. d5 {[%clk 0:03:09.5]} 9... Ne5 {[%clk 0:02:48.1]}
10. Nxe5 {[%clk 0:03:03.6]} 10... Bxe5 {[%clk 0:02:50]} 11. f4 {[%clk
0:02:58.2]} 11... Bg7 {[%clk 0:02:48.6]} 12. Nc3 {[%clk 0:02:58.3]} 12... c6
{[%clk 0:02:48.6]} 13. dxc6 {[%clk 0:02:49.4]} 13... bxc6 {[%clk 0:02:50.5]} 14.
Be3 {[%clk 0:02:50.4]} 14... Nc4 {[%clk 0:02:49.7]} 15. Bc5 {[%clk 0:02:39.4]}
15... Nxb2 {[%clk 0:02:30.1]} 16. Qc2 {[%clk 0:02:26.2]} 16... Qd3 {[%clk
0:02:24.6]} 17. Rac1 {[%clk 0:02:04.3]} 17... Qxc2 {[%clk 0:02:18.7]} 18. Rxc2
{[%clk 0:02:06.2]} 18... Ba6 {[%clk 0:02:09]} 19. Rb1 {[%clk 0:02:01.8]} 19...
Nc4 {[%clk 0:01:51.5]} 20. e5 {[%clk 0:01:17.1]} 20... Rfc8 {[%clk 0:01:28.4]}
21. Ne4 {[%clk 0:01:01.1]} 21... Nb6 {[%clk 0:01:17.9]} 22. Rd2 {[%clk
0:00:40.1]} 22... Nd5 {[%clk 0:01:15]} 23. Bh3 {[%clk 0:00:24.3]} 23... Rcb8
{[%clk 0:01:12.4]} 24. Rdb2 {[%clk 0:00:23.6]} 24... Rd8 {[%clk 0:01:04.5]} 25.
e6 {[%clk 0:00:21]} 25... Bd3 {[%clk 0:01:00.2]} 26. exf7+ {[%clk 0:00:19.5]}
26... Kh8 {[%clk 0:00:53.4]} 27. Re1 {[%clk 0:00:20.8]} 27... Bxe4 {[%clk
0:00:50.4]} 28. Rxe4 {[%clk 0:00:20.6]} 28... Bxb2 {[%clk 0:00:51.1]} 29. Bxe7
{[%clk 0:00:16.7]} 29... Nxe7 {[%clk 0:00:50]} 30. Rxe7 {[%clk 0:00:17.8]} 30...
Ba3 {[%clk 0:00:42]} 31. Rc7 {[%clk 0:00:16.7]} 31... Rf8 {[%clk 0:00:31.4]} 32.
Be6 {[%clk 0:00:17.1]} 32... c5 {[%clk 0:00:32.4]} 33. g4 {[%clk 0:00:17.7]}
33... Bb2 {[%clk 0:00:32.4]} 34. f5 {[%clk 0:00:17.4]} 34... Bd4+ {[%clk
0:00:34.3]} 35. Kg2 {[%clk 0:00:18.2]} 35... gxf5 {[%clk 0:00:34.4]} 36. gxf5
{[%clk 0:00:19.6]} 36... Kg7 {[%clk 0:00:35.9]} 37. Kf3 {[%clk 0:00:20.3]} 37...
Kf6 {[%clk 0:00:37]} 38. Ke4 {[%clk 0:00:20.8]} 38... a5 {[%clk 0:00:35.6]} 39.
a4 {[%clk 0:00:21.2]} 39... Rab8 {[%clk 0:00:35]} 40. Kd5 {[%clk 0:00:21.3]}
40... Rb4 {[%clk 0:00:34.8]} 41. Kd6 {[%clk 0:00:19.8]} 41... Be5+ {[%clk
0:00:34.4]} 42. Kd5 {[%clk 0:00:15.1]} 42... Bxc7 {[%clk 0:00:36.3]} 43. h4
{[%clk 0:00:16]} 43... c4 {[%clk 0:00:36.5]} 44. h5 {[%clk 0:00:17.9]} 44... c3
{[%clk 0:00:37.1]} 45. h6 {[%clk 0:00:19.8]} 45... c2 {[%clk 0:00:37.6]} 46. Bd7
{[%clk 0:00:15.3]} 46... c1=Q {[%clk 0:00:37.8]} 47. Be6 {[%clk 0:00:17.2]}
47... Qd2+ {[%clk 0:00:36.6]} 48. Kc6 {[%clk 0:00:18.3]} 48... Qd6# {[%clk
0:00:38.5]} 0-1